{"text_format":"3","workbook":"xlsx","n_sheets":3,"sheets":["COVER SHEET","MINISTRY OFFICE","Price Declaration "],"not_rendered":{"images":40,"defined_names":26},"read":"whole","date_system":"1900"}

{"sheet":"COVER SHEET","index":0,"n_rows":47,"n_cols":11,"rows_kept":47,"merged":[[1,10,1,11],[13,0,13,12],[16,4,16,11],[18,4,18,11],[20,4,20,11],[23,0,23,12],[25,0,25,12],[26,0,26,12],[27,0,27,12],[28,0,28,12],[29,0,29,12],[30,0,30,12],[31,0,31,12],[32,0,32,12],[33,0,33,12],[34,0,34,12],[35,0,35,12],[36,0,36,12],[37,0,37,12],[38,0,38,12],[39,0,39,12],[40,0,40,12],[41,0,41,12],[42,0,42,12],[43,0,43,12],[44,0,44,12],[45,0,45,12],[46,0,46,12],[47,0,47,12],[48,0,48,12],[49,0,49,12]]}
[]
[{"$nulls":10},"ANNEXURE A1"]
{"$rows_empty":11}
["PRICING SUBMISSION"]
[]
[]
["RFB NO:",{"$nulls":3},"RFB 04-2023"]
[]
["RFB NAME:",{"$nulls":3},"APPOINTMENT OF A SERVICE PROVIDER FOR THE PROCUREMENT OF OFFICE FURNITURE IN MINISTRY OFFICE AT MOMENTUM BUILDING."]
[]
["BIDDER NAME"]
[]
[]
["PRICE INSTRUCTIONS"]
[]
["1.  STRUCTURE OF THE TENDER"]
["This spreadsheet for RFB 00-2023 contains the financial response templates for the bid. The bid pricing submission instructions in this document must be read in conjunction with instructions or notes embedded in the various tabs of spreadsheet (Pricing Schedule)."]
[]
["2.  GENERAL INSTRUCTIONS FOR COMPLETING THE PRICING SCHEDULE TEMPLATES"]
["2.1  Tender submission format"]
["2.1.1 Bidders must submit both a paper copy and an electronic copy of the Pricing Schedule. In the event of a discrepancy, the\n         paper copy will prevail."]
["2.1.2 Bidders must sign all paper copies of their Pricing Schedule."]
["2.1.3 Bidders must complete and submit ALL templates 1.1 & 1.2,which are management fee model onsite and offsite,\n         transactional fee model onsite and offsite"]
["2.1.4 Bidders must reference main document section 9.2 for current travel volumes"]
["2.2  Input spreadsheets"]
["2.2.1 The Pricing Schedule templates are contained within the one (1) Excel spreadsheet ."]
["2.2.2 All worksheets in the electronic copy of the Pricing Schedule are password protected."]
["2.2.3 Bidders must not unprotect the spreadsheets and/or make any changes to the spreadsheets or change the formatting\n         of the Pricing Schedule."]
["2.2.4 Cells are formatted to automatically indicate South African Rands, ordinary text fields and percentages (%) where \n         applicable."]
["2.2.5 Input cells are highlighted in light green. The Bidder must complete all input cells for the bid. No other cells must be\n        changed in any way whatsoever."]
["2.2.6 The Bidders are required to input the following cells only:"]
[]
[]
["2.3  Currency and VAT"]
["2.3.1 Bidders’ proposed Pricing Schedules must be firm and not indicative."]
["2.3.2 All Bidders’ pricing must be quoted in South African Rands (ZAR)."]
["2.3.3 The Pricing Schedule template is designed such that VAT will be calculated on Bidders’ input pricing; therefore Bidders \n         must complete the templates with unit prices excluding VAT."]

{"sheet":"MINISTRY OFFICE","index":1,"n_rows":54,"n_cols":7,"rows_kept":54,"merged":[[0,2,2,6],[3,2,3,6],[6,2,6,6],[7,2,7,6],[8,2,8,6],[10,3,10,5],[11,0,11,2],[11,3,11,6],[54,0,54,2],[56,0,56,1],[56,3,56,5],[57,3,57,6],[58,3,58,6]]}
[null,null,"TEMPLATE 1: MINISTRY OFFICE "]
[]
[]
[]
[]
[]
["RFB NO:",null,"RFB  04-2023"]
["RFB NAME:",null,"APPOINTMENT OF A SERVICE PROVIDER FOR THE PROCUREMENT OF OFFICE FURNITURE IN MINISTRY OFFICE AT MOMENTUM BUILDING."]
["BIDDER NAME"]
[]
["1.1     MINISTRY OFFICE"]
[{"$nulls":3},"OFFICE  FURNITURE"]
["ITEM","FURNITURE DESCRIPTION","Estimated Volume","Unit Price\n(excl VAT)","VAT Rate","Unit Price\n(incl VAT)","TOTAL Price\n(incl VAT)"]
[{"$f":"+A14:B19B53A14:B20A14:B20A14:B21A14:B22B53A14:B20A14:B23A14:B24B53A14:B20A14:B26B53A14A14:B44","v":{"$error":"#NAME?"}},"\nFranklin dark brown mahogany veneer reception unit 2100x1800x1080h with LED light",2,null,{"v":0.15,"d":"15%"},{"$f":"D14 * (1 + E14)","v":0},{"$f":"(D14 * (1 + E14)) * C14","v":0}]
[null,"High Back Chair\nMultifunction mechanism / Aluminium\nfixed arms in chrome / 5-Star polished\naluminium base with 60mm castors /\nBlack bonded leather upholstery",4,null,{"v":0.15,"d":"15%"},{"$f":"D15 * (1 + E15)","v":0},{"$f":"(D15 * (1 + E15)) * C15","v":0}]
[null,"Global Exec HD dark brown mahogany veneer cabinet 900x450x1100h",2,null,{"v":0.15,"d":"15%"},0,0]
[null,"Dark brown mahogany veneer 3 drawers’ mobile pedestal 400 (W) X 500 (D) X 553 (H)",2,null,{"v":0.15,"d":"15%"},0,0]
[null,"Soul occasional  grey chair with black steel legs 840 (W) x 850 (D) x 850 (H) x 400 (SH)",3,null,{"v":0.15,"d":"15%"},0,0]
[null,"Glass side table with black steel legs 450dx550h",9,null,{"v":0.15,"d":"15%"},0,0]
[null,"Allure L-Shape executive desk with Laminate two tone allure mobile pedestal dark brown mahogany veneer 2200 (L) X 2150 (W) X 738 (H)",2,null,{"v":0.15,"d":"15%"},0,0]
[null,"High back chair/synchronised mechanism / Moulded foam seat & back /5-Star polished aluminium base with 65mm self-braking castors /Genuine black leather upholstery with Eco leather outer back",2,null,{"v":0.15,"d":"15%"},0,0]
[null,"Visitors chair Chrome sleigh frame with black nylon arm capping / Black mesh back / Seat upholstered in standard black fabric",34,null,{"v":0.15,"d":"15%"},0,0]
[null,"Liberty double seater light blue couch upholstered in fabric and black steel legs 2100 (W) x 800 (D) x 750 (H)",3,null,{"v":0.15,"d":"15%"},0,0]
[null,"Urban funk light brown mahogany veneer coffee table with black steel legs 1200x600",2,null,{"v":0.15,"d":"15%"},0,0]
[null,"Mahogany veneer Allure hinge door dark brown cabinet two tone 100 (W) X 450 (D) X 1100 (H)",2,null,{"v":0.15,"d":"15%"},0,0]
[null,"Set square dark brown Mahogany veneer server 1600w x 620 with fridge cabinet.",2,null,{"v":0.15,"d":"15%"},0,0]
[null,"Allure 4-seater dark brown Mahogany veneer meeting table 1200x1200",2,null,{"v":0.15,"d":"15%"},0,0]
[null,"Medium back chair fixed height with swivel & memory return function / 4-Star polished aluminium base on glides / black leather upholstery with Eco-leather outer back",10,null,{"v":0.15,"d":"15%"},0,0]
[null,"4 tier single face  wall to wall dark brown Mahogany veneer Bookshelves 800 (W) 304 (D) X 2000 (H)",2,null,{"v":0.15,"d":"15%"},0,0]
[null,"Ecocentric 20 seater boardroom dark brown Mahogany veneer oval table 6400x1200x738h ",2,null,{"v":0.15,"d":"15%"},0,0]
[null,"Medium back chair synchro-tilt mechanism / Backrest in black mesh with height adjustable lumbar support / 3D Arms adjustable in height with pivot and sliding function with soft-touch arm pads 5-Star black nylon base with 60mm castors / Seat upholstered in standard black fabric",36,null,{"v":0.15,"d":"15%"},0,0]
[null,"High back chair knee-tilt mechanism / Backrest with integrated headrest / Fixed aluminium arms with leather-look padding / 5-Star aluminium base with 50mm castors / Black leather-look upholstery ",4,null,{"v":0.15,"d":"15%"},0,0]
[null,"Dark brown Mahogany veneer Brainstorm server 1600x600x920h with fridge cabinet ",2,null,{"v":0.15,"d":"15%"},0,0]
[null,"Diamond   dark brown Mahogany veneer L Shape desk 2000x1000 ",11,null,{"v":0.15,"d":"15%"},0,0]
[null,"High back chair loop operator chair with headrest black mesh back with black seat 3D Arms adjustable in height with pivot and sliding function with soft-touch arm pads 5-Star black nylon base with 60mm castors / Seat upholstered in standard black fabric",14,null,{"v":0.15,"d":"15%"},0,0]
[null,"Lutei single seater couch upholstered in blue fabric with black steel legs 750 (W) x 700 (D) x 770 (H)",12,null,{"v":0.15,"d":"15%"},0,0]
[null,"Dark brown mahogany veneer Mobile pedestal with roller credenza 115 (W) X 550 (D) X 567 (H)",6,null,{"v":0.15,"d":"15%"},0,0]
[null,"Global Hinge door  dark brown mahogany veneer  cabinet with 2 doors 900 (W) X 550 (D) X 567 (H)",16,null,{"v":0.15,"d":"15%"},0,0]
[null,"Legacy dark brown mahogany veneer   L-Shape desk 1900 (L) X 2000 (W) X 738 (H)",2,null,{"v":0.15,"d":"15%"},0,0]
[null,"Global Exec dark brown mahogany veneer wall unit 1800w x 450d x 110h",2,null,{"v":0.15,"d":"15%"},0,0]
[null,"Radisson round dark brown Mahogany veneer table with wooden legs 1200 dia ",2,null,{"v":0.15,"d":"15%"},0,0]
[null,"Lobby visitors chair moulded shell reinforced with inner steel frame / Swivel and gas height adjustment /dark grey 4-Star polished aluminium base / Standard desert sand, dark grey upholstery",2,null,{"v":0.15,"d":"15%"},0,0]
[null,"Highback Chair synchro-tilt mechanism / Backrest in black mesh with height adjustable lumbar support / 3D Arms adjustable in height with pivot and sliding function with soft-touch arm pads 5-Star black nylon base with 60mm castors / Seat upholstered in standard black fabric",2,null,{"v":0.15,"d":"15%"},0,0]
[null,"Mobile metal pedestal slim black 400 (W) X 550 (D) X 553 (H)",2,null,{"v":0.15,"d":"15%"},0,0]
[null,"Loop sky blue single seater couch. Black metal loop arm, upholstered in fabric moon685 (W) x 750 (D) x 700 (H)",3,null,{"v":0.15,"d":"15%"},0,0]
[null,"Dado 4x1  black glass door server with silver steel legs 1800 (W) X 450 (D) 720 (H)",1,null,{"v":0.15,"d":"15%"},0,0]
[null,"Library single seater in Kariba Fabric couch with black steel legs \nColour: mustard 800 (W) x 800 (D) x 880 (H",1,null,{"v":0.15,"d":"15%"},0,0]
[null," 2 seater leather dark brown couch with wooden legs",1,null,{"v":0.15,"d":"15%"},0,0]
[null,"Urban funk dark brown mahogany veneer coffee table 1200x600",1,null,{"v":0.15,"d":"15%"},0,0]
[null,"Anray 3 Piece Club Patio Set - Black Copper",2,null,{"v":0.15,"d":"15%"},0,0]
[null,"Rustic  light brown mahogany veneer coffee table with black steel legs 900 dia",1,null,{"v":0.15,"d":"15%"},0,0]
[null,"Allure 4-seater round table in dark brown mahogany veneer (1200 x 1200) ",1,null,{"v":0.15,"d":"15%"},0,0]
[null,"Ecocentric lite range 2175x1800x725h two tone laminate desk dark brown mahogany veneer ",5,null,{"v":0.15,"d":"15%"},0,0]
[null,"TOTAL",{"$nulls":4},{"$f":"SUM(G14:G53)","v":0}]

{"sheet":"Price Declaration ","index":2,"n_rows":40,"n_cols":8,"rows_kept":40,"merged":[[7,0,7,1],[7,2,7,8],[8,0,8,1],[8,2,8,8],[9,0,9,1],[9,2,9,8],[12,0,12,8],[15,0,15,8],[16,0,16,8],[17,0,17,8],[18,0,18,3],[18,4,18,8],[19,0,19,1],[19,2,19,3],[19,4,19,6],[19,7,19,8],[20,0,20,8],[21,0,21,3],[21,4,21,8],[23,0,23,8],[24,0,24,8],[25,0,25,8],[26,0,26,8],[27,0,27,8],[28,0,28,8],[29,0,29,8],[30,0,30,2],[30,4,30,8],[31,0,31,8],[32,0,32,8],[33,0,33,8],[34,0,34,8],[35,0,35,8],[36,0,36,8],[37,0,37,8],[38,0,38,8],[39,0,39,8],[40,0,40,8]]}
{"$rows_empty":7}
["RFB NO:",null,{"$f":"'COVER SHEET'!$E17","v":"RFB 04-2023"}]
["RFB NAME:",null,{"$f":"'COVER SHEET'!$E19","v":"APPOINTMENT OF A SERVICE PROVIDER FOR THE PROCUREMENT OF OFFICE FURNITURE IN MINISTRY OFFICE AT MOMENTUM BUILDING."}]
["BIDDER NAME",null,{"$f":"'COVER SHEET'!$E21","v":0}]
[]
[]
["Price Declaration"]
["Dear Sir/Madam,"]
[]
["Having read through and examined the Request For Proposal (RFP) Document, the General Conditions, The Requirement and all other Annexures to the RFP Document, we offer to provide OFFICE FURNITURE to the DOJ&CD at the following total amounts (including VAT)"]
[]
[]
[]
[{"$f":"'MINISTRY OFFICE'!G54","v":0},null,"(incl. VAT)",{"$nulls":4},"(incl. VAT)"]
["In words:"]
[]
[]
[]
["We undertake to hold this offer open for acceptance for a period of 120 days from the date of submission of offers. We further undertake that upon final acceptance of our offer, we will commence with the provision of service when required to do so by the DOJ&CD"]
[]
["We understand that DOJ&CD are not bound to accept the lowest or any offer and that we must bear all costs which we have incurred in connection with preparing and submitting this bid."]
[]
["We hereby undertake for the period during which this bid remains open for acceptance not to divulge to any persons, other than the persons to which the bid is submitted, any information relating to the submission of this bid or the details therein except where such is necessary for the submission of this bid."]
[]
["Signature",{"$nulls":3},"Date"]
["Print name of signatory: ……………………………………………………………………………. "]
["Designation: ………………………………………………………………………………………….  "]
[]
["FOR AND ON BEHALF OF: COMPANY NAME"]
[]
["Tel No: ………………………………………."]
["Fax No: ………………………………………."]
["Cell No: ………………………………………."]
["Email:…………………………………………."]